Cogmind - Beta 16.1 @@@ ROGUE MODE // 2026.03.22 @ 14:42:33 Player: Skythe Result: Destroyed by as-75967 with Assembled F-torch Performance ------------- Evolutions (1) 500 Regions Visited (3) 600 Robots Destroyed (34) 170 Value Destroyed (912) 912 Prototype IDs (3) 60 Alien Tech Used (0) 0 Bonus (-35) -35 TOTAL SCORE: 2207 Bonus ------- Friendly Fire -35 Cogmind --------- Core Integrity 0/400 Matter 275/300 Energy 73/100 System Corruption 1% Temperature Danger (426) Movement Core (450) Ox8 Location -9/Mines Parts ------- > --- POWER (1) -------- (None) > --- PROPULSION (3) --- (None) > --- UTILITY (3) ------ Large Storage Unit Visual Processing Unit > --- WEAPON (2) ------- Field Laser Axe > --- INVENTORY (15) --- Ion Engine Heat Sink Terrain Scan Processor Terrain Scan Processor Improved Targeting Computer Field Laser Field Laser Beam Cannon Mini Grenade Launcher Mini Grenade Launcher Mini Grenade Launcher Mining Laser Mining Laser Axe Peak State ------------ > --- POWER ------------ Light Nuclear Core > --- PROPULSION ------- Carbon-fiber Leg Carbon-fiber Leg Carbon-fiber Leg > --- UTILITY ---------- Cooling System Large Storage Unit Visual Processing Unit > --- WEAPON ----------- Field Laser Field Laser > --- INVENTORY -------- Ion Engine Light Ion Engine Heavy Ion Engine Carbon-fiber Leg Heat Sink Field Laser Field Laser Beam Cannon Mini Grenade Launcher Mini Grenade Launcher Mini Grenade Launcher Mining Laser Mining Laser Axe Axe [Rating: 26] Favorites ----------- Power Light Nuclear Core Engine Light Ion Engine Power Core Light Nuclear Core Propulsion Carbon-fiber Leg Treads Light Treads Leg Carbon-fiber Leg Hover Unit Hover Unit Utility Large Storage Unit Device Cooling System Storage Large Storage Unit Processor Visual Processing Unit Protection Light Armor Plating Weapon Field Laser Energy Gun Field Laser Energy Cannon Beam Cannon Ballistic Gun Light Assault Rifle Launcher Mini Grenade Launcher Slashing Weapon Axe Build | -11 -10 -9 -9 ------- Run | Yrd Mat Mat Min Slots Evolved 2 | . . 2 . Power . | . . . . Propulsion 1 | . . 1 . Utility 1 | . . 1 . Weapon . | . . . . Parts Attached 31 | 6 5 13 7 Power 4 | 1 1 . 2 Engine 2 | 1 . . 1 Core 2 | . 1 . 1 Reactor . | . . . . Propulsion 11 | 2 . 8 1 Treads 3 | 2 . 1 . Leg 5 | . . 4 1 Wheel . | . . . . Hover 3 | . . 3 . Flight . | . . . . Utility 6 | 1 2 2 1 Device 2 | . . 2 . Storage 2 | 1 1 . . Processor 1 | . 1 . . Hackware . | . . . . Protection 1 | . . . 1 Artifact . | . . . . Weapon 10 | 2 2 3 3 Energy Gun 5 | 1 . 2 2 Energy Cannon 2 | . 2 . . Ballistic Gun 1 | 1 . . . Ballistic Cannon . | . . . . Launcher 1 | . . 1 . Special Weapon . | . . . . Impact Weapon . | . . . . Slashing Weapon 1 | . . . 1 Piercing Weapon . | . . . . Special Melee Weapon . | . . . . Unidentified Prototypes 1 | . . 1 . Parts Lost 10 | . 1 4 5 Power 3 | . . 2 1 Propulsion 4 | . . 1 3 Utility 1 | . . . 1 Weapon 2 | . 1 1 . Highest Loss Streak 5 | . 1 3 5 To Critical Strikes . | . . . . Average Backups 12 | 2 12 13 12 Power 1 | . 1 1 . Propulsion 1 | . 2 . . Utility 1 | . 2 1 2 Weapon 7 | 1 5 9 9 Tool/Special . | . . . . Unused Backups 14 | . 2 2 10 Power 1 | . . 1 . Propulsion 1 | . 1 . . Utility 5 | . . 1 4 Weapon 7 | . 1 . 6 Tool/Special . | . . . . Average Slot Usage (%) 96 | . 98 99 86 Engine 2 | . 6 . 1 Core 8 | . 7 10 7 Treads 14 | . 28 7 . Leg 15 | . . 25 25 Device 4 | . . 10 3 Storage 12 | . 14 11 11 Processor 11 | . 12 11 11 Protection 1 | . . . 7 Energy Gun 11 | . 7 12 18 Energy Cannon 7 | . 12 5 . Ballistic Gun 3 | . 7 . . Launcher 1 | . . 3 . Peak Build Rating 26 | 6 12 26 22 Average Rating 16 | 4 10 22 19 On Entrance 8 | . 6 12 16 Avg Prop Armor Cover (%) . | . . . . Naked Turns . | . . . . Heaviest Build 34 | 11 31 33 34 Greatest Support 60 | 40 40 60 40 Greatest Overweight (x) 1 | . . 1 1 Average Overweight (x) . | . . . . Largest Inventory Capacity 15 | 8 15 15 15 Average Capacity 14 | 6 14 15 15 Most Carried 15 | 5 15 15 14 Average Carried 12 | 2 12 13 12 Final Capacity 15 | 8 15 15 15 Final Carried 14 | 2 14 13 14 Class Distribution -------------------- 100% | Mutant Dominant Class ---------------- Mutant | -10/Materials Mutant | -9/Materials Mutant | -9/Mines Resources | -11 -10 -9 -9 ----------- Run | Yrd Mat Mat Min Matter Collected 631 | 104 164 303 60 Remotely . | . . . . Salvage Created 1096 | . 258 701 137 Parts 62 | . 15 44 3 Haulers Intercepted 1 | . . 1 . Recyclers Shooed 1 | . 1 . . Parts Field Recycled . | . . . . Retrieved Matter . | . . . . Parts Self-Destructed . | . . . . Prevented . | . . . . Parts Restored . | . . . . Kills | -11 -10 -9 -9 ------- Run | Yrd Mat Mat Min Combat Hostiles Destroyed 27 | . 4 19 4 Melee 1 | . . . 1 Guns 9 | . 3 3 3 Cannons 6 | . . 6 . AOE 10 | . 1 9 . Classes Destroyed 8 | . 2 5 1 Worker 2 | . . 1 1 Hauler 1 | . . 1 . Recycler 2 | . . 2 . Watcher 4 | . 3 1 . Swarmer 7 | . . 7 . Grunt 13 | . 4 7 2 Sentry 5 | . . 5 . Assembled 2 | . . . 2 Best Kill Streak 13 | . 4 13 3 Combat Bots Only 10 | . 3 10 2 Max Kills in Single Turn 5 | . 1 5 1 Gunslinging . | . . . . Exploded 4 | . 1 4 . Melee 1 | . . . 1 Uniques/NPCs Destroyed . | . . . . Combat | -11 -10 -9 -9 -------- Run | Yrd Mat Mat Min Hostile Shots Fired 205 | . 10 131 64 Missed 65 | . 3 47 15 Hits 140 | . 7 84 49 Melee 7 | . . . 7 Projectile 133 | . 7 84 42 Critical Strikes 3 | . 1 2 . Part Disruptions 1 | . . . 1 Damage Taken 1908 | . 173 955 780 Core 477 | . 69 163 245 Absorbed by Shields . | . . . . Core Remaining (%) 86 | 100 72 . . Volleys Fired 86 | . 17 50 19 Largest 2 | . 2 2 2 Hottest 126 | . 120 126 126 Shots Fired 133 | . 34 74 25 Gun 92 | . 32 35 25 Cannon 31 | . 2 29 . Launcher 10 | . . 10 . Special . | . . . . Kinetic 16 | . 16 . . Thermal 91 | . 2 64 25 Explosive 10 | . . 10 . Electromagnetic 16 | . 16 . . Robot Hit Streak 8 | . 4 8 5 Robot Miss Streak 3 | . 3 2 3 Penetration Max . | . . . . Secondary Targets 3 | . 2 1 . Max Gunslinging Chain 1 | . 1 1 . Shots Hit Robots 84 | . 17 53 14 Core Hits 56 | . 13 33 10 Critical Kills . | . . . . Critical Parts Destroyed . | . . . . Critical Strikes 2 | . . 2 . Burn 2 | . . 2 . Melee Attacks 2 | . . . 2 Impact . | . . . . Slashing 2 | . . . 2 Piercing . | . . . . Sneak Attacks . | . . . . Combat Hostiles . | . . . . Follow-up Attacks . | . . . . Damage Inflicted 2411 | . 308 1742 361 Guns 1008 | . 254 445 309 Cannons 385 | . 17 368 . Explosions 966 | . 37 929 . Melee 52 | . . . 52 Ramming . | . . . . Kinetic 90 | . 90 . . Thermal 1176 | . 54 813 309 Explosive 929 | . . 929 . Electromagnetic 164 | . 164 . . Impact . | . . . . Slashing 52 | . . . 52 Piercing . | . . . . Highest Corruption 1 | . 1 1 1 Average Corruption 1 | . 1 1 1 Corruption Purged . | . . . . Corruption Blocked . | . . . . Effects 5 | . 1 2 2 Heat Flow Errors 2 | . . 1 1 Energy Discharges 1 | . . 1 . Data Loss (minor) 2 | . 1 . 1 Overload Shots . | . . . . Overflow Damage 65 | . . 65 . Projectiles . | . . . . Explosions 65 | . . 65 . Melee . | . . . . Knockbacks . | . . . . Impact . | . . . . Kinetic . | . . . . Secondary . | . . . . Self-Inflicted Damage . | . . . . Shots . | . . . . Rammed . | . . . . Targets Rammed . | . . . . Kicked . | . . . . Crushed . | . . . . Highest Temperature 516 | . 66 227 516 Average Temperature 104 | . 27 27 269 Received Heat Transfer 660 | . 75 354 231 Effects 4 | . . . 4 Energy Bleed 1 | . . . 1 Interference 2 | . . . 2 Matter Decay 1 | . . . 1 Siege Activations . | . . . . Martial Activations . | . . . . Shielding Activations . | . . . . Robots Disrupted . | . . . . Combat Hostiles . | . . . . Robots Corrupted . | . . . . Combat Hostiles . | . . . . Parts Fried . | . . . . Impact Corruptions . | . . . . Robots Melted 1 | . . 1 . Combat Hostiles 1 | . . 1 . Parts Melted 6 | . . 4 2 Heat Transferred 2640 | . 87 1887 666 Parts Sabotaged . | . . . . Parts Stolen . | . . . . Parts Stripped . | . . . . Power Chain Reactions 1 | . 1 . . Alert | -11 -10 -9 -9 ------- Run | Yrd Mat Mat Min Maximum Alert Level 1 | . . 1 . Low Security (%) 67 | 100 100 14 100 Level 1 32 | . . 85 . Level 2 . | . . . . Level 3 . | . . . . Level 4 . | . . . . Level 5 . | . . . . High Security . | . . . . Max Security . | . . . . Peak Influence 342 | . 115 342 116 Initial 106 | . . . 106 Average 121 | . 24 265 62 Influence Increases 817 | . 163 599 55 Destroy 0b10 Robot/C 500 | . 80 380 40 Destroy 0b10 Robot/NC 45 | . 15 25 5 Destroy Leader 130 | . 26 94 10 Successful Hack 26 | . 4 22 . Disable Machine 45 | . 15 30 . Destroy Structure 41 | . 8 33 . Lose Combat Pursuer 30 | . 15 15 . Influence Decreases 817 | . 163 324 330 Entered New Map 169 | . . . 169 Time Decay 593 | . 153 284 156 Lost Part 50 | . 10 40 . Lost Ally 5 | . . . 5 Squads Dispatched . | . . . . Investigation . | . . . . Extermination . | . . . . Reinforcement . | . . . . Assault . | . . . . Garrison . | . . . . Intercept . | . . . . Searches Triggered . | . . . . Construction Impeded . | . . . . Haulers Reinforced . | . . . . Active Scanning Responses . | . . . . Cargo Convoy Interrupts . | . . . . Stealth | -11 -10 -9 -9 --------- Run | Yrd Mat Mat Min Distress Signals 2 | . 1 1 . Communications Jammed . | . . . . Distress Signals . | . . . . Times Spotted 43 | . 8 26 9 Peak Tracking Total 11 | . 3 11 5 Tactical Retreats 2 | . 1 1 . Traps | -11 -10 -9 -9 ------- Run | Yrd Mat Mat Min Traps Triggered 2 | . 1 1 . Indirectly . | . . . . Trap Hack Attempts . | . . . . Triggered . | . . . . Disarmed . | . . . . Reprogrammed . | . . . . Reused . | . . . . Traps Extracted . | . . . . Installed . | . . . . Triggered . | . . . . Machines | -11 -10 -9 -9 ---------- Run | Yrd Mat Mat Min Machines Disabled 3 | . 1 2 . Max in Single Turn 1 | . 1 1 . Machines Repaired . | . . . . Machines Dismantled . | . . . . Machines Sabotaged . | . . . . Overloaded Fab Kills . | . . . . Hacking | -11 -10 -9 -9 --------- Run | Yrd Mat Mat Min Machines Accessed 5 | . 3 2 . Terminals 4 | . 3 1 . Fabricators . | . . . . Repair Stations . | . . . . Recycling Units . | . . . . Scanalyzers 1 | . . 1 . Garrison Access . | . . . . Total Hacks 8 | . 4 4 . Successful 6 | . 4 2 . Failed 2 | . . 2 . Catastrophic . | . . . . Database Lockouts . | . . . . Manual . | . . . . Terminals 6 | . 4 2 . Fabricators . | . . . . Repair Stations . | . . . . Recycling Units . | . . . . Scanalyzers 2 | . . 2 . Garrison Access . | . . . . Terminal Hacks 4 | . 4 . . Prototype ID Bank 1 | . 1 . . Emergency Access Points 1 | . 1 . . Alert Level 1 | . 1 . . Zone Layout 1 | . 1 . . Fabricator Hacks . | . . . . Repair Station Hacks . | . . . . Recycling Unit Hacks . | . . . . Scanalyzer 2 | . . 2 . Insert Component 1 | . . 1 . Analyze 1 | . . 1 . Garrison Access Hacks . | . . . . Unauthorized Hacks . | . . . . Terminals . | . . . . Fabricators . | . . . . Repair Stations . | . . . . Recycling Units . | . . . . Scanalyzers . | . . . . Garrison Access . | . . . . Data Cores Recovered . | . . . . Used . | . . . . Hacking Detections 2 | . 1 1 . Full Trace Events 1 | . . 1 . Feedback Events . | . . . . Feedback Blocked . | . . . . Robot Schematics Acquired . | . . . . Robots Built . | . . . . Authchips . | . . . . Time . | . . . . Total Robot Build Rating . | . . . . Part Schematics Acquired 1 | . . 1 . Parts Built . | . . . . Authchips . | . . . . Time . | . . . . Total Part Build Rating . | . . . . Part Studies Acquired . | . . . . Parts Repaired . | . . . . Time . | . . . . Parts Recycled . | . . . . Recycled Matter . | . . . . Retrieved Matter . | . . . . Retrieved Components . | . . . . Parts Scanalyzed 1 | . . 1 . Part Schematics Acquired 1 | . . 1 . Parts Damaged . | . . . . Bothacking | -11 -10 -9 -9 ------------ Run | Yrd Mat Mat Min Used RIF Installer . | . . . . Robots Hacked . | . . . . Non-combat . | . . . . Combat . | . . . . Robot Hacks Applied . | . . . . Relay Couplers Released . | . . . . Fabnet Peak Effective % . | . . . . Robots Rewired . | . . . . Allies Hacked . | . . . . Hacks Repelled . | . . . . Allies | -11 -10 -9 -9 -------- Run | Yrd Mat Mat Min Total Allies 2 | . . . 2 Largest Group 2 | . . . 2 Highest-Rated Group 51 | . . . 51 Highest-Rated Ally 31 | . . . 31 Total Orders . | . . . . Ally Attacks 7 | . . . 7 Total Damage 62 | . . . 62 Kills 2 | . . . 2 Allies Corrupted . | . . . . Allies Melted . | . . . . Intel | -11 -10 -9 -9 ------- Run | Yrd Mat Mat Min Active Infowar (turns) 1602 | . 607 658 337 Optics 1602 | . 607 658 337 Robot Analysis Total . | . . . . Derelict Logs Recovered . | . . . . Drone Launches . | . . . . Drone Recoveries . | . . . . Exploration | -11 -10 -9 -9 ------------- Run | Yrd Mat Mat Min Turns Passed 1756 | 86 664 658 348 Spaces Moved 1013 | 57 370 388 198 Core 16 | 16 . . . Treads 474 | 41 370 63 . Legs 521 | . . 323 198 Wheels . | . . . . Hover 2 | . . 2 . Flight . | . . . . Fastest Speed 50 | 50 160 112 120 Average Speed 141 | 129 160 126 141 Slowest Speed 190 | 160 160 160 190 Overloaded Moves . | . . . . Propulsion Burnouts . | . . . . Robots Hopped . | . . . . Potential Cave-ins . | . . . . Cave-ins Triggered . | . . . . Exploration Rate (%) 33 | 3 51 35 43 Regions Visited 3 Branch Regions 1 Pre-discovered Areas . | . . . . Known Exits Taken . | . . . . Unknown Exits Taken 3 | 1 1 1 . Scrap Searched 1 | . . . 1 Spaces Dug . | . . . . Terrain Destroyed 72 | . 8 64 . Melee . | . . . . Projectile . | . . . . AOE 72 | . 8 64 . Terrain Rammed . | . . . . Walls Destroyed . | . . . . Machines Disabled . | . . . . Actions | -11 -10 -9 -9 --------- Run | Yrd Mat Mat Min Total 1199 | 70 411 482 236 Wait 1 | . . . 1 Move 1010 | 56 369 387 198 Hop . | . . . . Pick Up 46 | 8 17 16 5 Fast Attach . | . . . . Attach 14 | 6 2 3 3 Detach . | . . . . Swap 19 | . 3 12 4 Drop 18 | . 3 14 1 Fire 86 | . 17 50 19 Melee 2 | . . . 2 Ram . | . . . . Kick . | . . . . Crush . | . . . . Escape Stasis . | . . . . Rewire 3 | . . . 3 Trap . | . . . . Miscellaneous . | . . . . Route ------- -11/Scrapyard -10/Materials (discovered 2 exits: *Mat / [*Min]) -9/Materials -9/Mines History --------- Turn | Location | Event 8 | -11/Scrapyard | Discovered new exit (range 16) 87 | -11/Scrapyard | Entered Materials 244 | -10/Materials | Discovered new exit (range 7) 317 | -10/Materials | Build established: Mutant 482 | -10/Materials | Discovered new exit (range 9) 751 | -10/Materials | Entered another Materials area 751 | -9/Materials | Evolved 2 slots: Propulsion x1, Utility x1 876 | -9/Materials | Destroyed 10 combat bots 1359 | -9/Materials | Discovered new exit (range 18) 1409 | -9/Materials | Entered Mines 1432 | -9/Mines | Lost 3 parts (1p1n1w) 1704 | -9/Mines | Assembled infested the area 1742 | -9/Mines | Core integrity fell below 50% 1753 | -9/Mines | Core integrity fell below 20% 1757 | -9/Mines | Destroyed by as-75967 with Assembled F-torch Last Messages --------------- U-05 Engineer is broken beyond repair. K-01 Serf collects debris. Acquired Imp. Targeting Computer. ALERT: Infestation in the mines, dispatching Demolisher response squad. as-45785 suffers critical hit (Burn). as-45785 destroyed. NW-D53(g) overheating. K-01 Serf collects debris. K-01 Serf destroyed. Overheating: Energy bleed (-16). NW-D53(g) destroyed. Lgt. Armor Plating destroyed. Lgt. Nuclear Core destroyed. as-13389 destroyed. Overheating: Matter decay (-30). Carbon-fiber Leg destroyed. System corrupted: Component data lost. Aluminum Leg destroyed. as-46456 destroyed. Map ----- +----------------------------------------------------+ | ## #????????# ??????????????????????????? | | ## #????????# #???####???????????????????? | | ##?###????????# #??##[ ##??????????????????? | | #?????????????# #??# #??????????????????? | | ##????######### #### #?????####?????????? | | ###??# % #?????## ##????????? | | ##?# = #????### #????????? | | ## ### ########### ##??## #????????? | | #?## ## #???????## #### ##????????? | | ???## #???????# ! ##?????????? | | ????# ## #???????# ##??????????? | | ???## ## #???????# ## ##???????????? | | ??## ## #???????# ##### #####????????????? | | ??# # ###?????# ##### #????????????????? | | ??# ### ###???# #????????????????? | | ??## #?## #???####### #????????????????? | | ???## #??## #????????# #????????????????? | | ????# #???# #????????# #????????????????? | | ???? ?? ##????????# #????????????????? | | ???## #?#### ##?????????# #????????????????? | | ????# #????## #??????????# #????????????????? | | ????# #?????## #?????????## #????????????????? | | ????# #??????# ##?????????# #????????????????? | | ????# ???????####??????##### ###????????????????? | | ????# ?????????????????# * #??????????????????? | | ???? ?????????????????#@%####??????????????????? | | ???? ??????????????????#%a#?????????????????????? | | ????#???????????????????#%%#?????????????????????? | | ????????????????????????# ?????????????????????? | | ???????????????????????? aa ????????????????????? | | ??????????????????????? a ???????????????????? | | ??????????????????????? % ???????????????????? | | ??????????????????????### ??????????????????? | | ????????????????????????#### ?????????????????? | | ????????????????????????????# #????????????????? | | ?????????????????????????????#% #????????????????? | | ?????????????????????????????? #????????????????? | | ?????????????????????????????? #????????????????? | | ??????????????????????????????? #????????????????? | | ??????????????????????????????? #????????????????? | | ?????????????????????????????????????????????????? | | ?????????????????????????????????????????????????? | | ?????????????????????????????????????????????????? | | ?????????????????????????????????????????????????? | | ?????????????????????????????????????????????????? | | ?????????????????????????????????????????????????? | | ?????????????????????????????????????????????????? | | ?????????????????????????????????????????????????? | | ?????????????????????????????????????????????????? | | | +----------------------------------------------------+ Best States ------------- Heat Dissipation 50 Energy Generation 14 Energy Capacity 250 Matter Stores 300 Matter Capacity 300 Sight Range 18 Terrain Scan Density 10 Armor Coverage 150 Evasion (%) 55 Recoil Reduction 3 Item Schematics ----------------- Lgt. Armor Plating | -9/Materials | Scanalyzed Robot Schematics ------------------ None Fabricated ------------ Nothing Repaired ---------- Nothing Studied --------- None Alien Tech Used ----------------- None Achievements -------------- None Challenges ------------ None Game ------ Seed NavigationMolecularMonowheel Manual? 0 Play Time 00:21:59 Cumulative 4.7 hours Start 2026.03.22 @ 14:07:56 End 2026.03.22 @ 14:42:33 Sessions 1 Manual Loads 0 Difficulty Rogue Special Mode None Game No. 16 Rogue 16 Adventurer 0 Explorer 0 Win Type - Total 0 Types 0/0/0/0/0/0/0/0/0/0 Lore% 2 Gallery% 9 Achievement% 10 Wizard Run 0 Options --------- Layout 1 ASCII 0 Keyboard 0 Movement Arrows Keybinds 0 Fullscreen 1 Font 24/Proggy Map View 50x35 Zoom Use 0% Tactical HUD 0 Map Filters NONE Filters NONE Steam 1 RUN: 0ae93bec-addf-46ff-bffe-02b1b662f11e